bitfinex/quotes_BTCUSD_20220304
["timestamp","ask_amount","ask_price","bid_price","bid_amount"]
[1646388403329,0.48231316,41583.0,41582.0,0.890694]
[1646388403628,0.48231316,41583.0,41582.0,1.020694]
[1646388403829,0.25745562,41583.0,41582.0,1.120694]
[1646388404032,0.25745562,41583.0,41582.0,1.83801358]
[1646388404232,0.25745562,41583.0,41582.0,1.94618787]
[1646388404430,0.25745562,41583.0,41582.0,1.65646226]
[1646388404730,0.25745562,41583.0,41582.0,1.90636226]
[1646388407581,0.25745562,41583.0,41582.0,1.9202137]
[1646388408180,0.25745562,41583.0,41582.0,1.90636226]
[1646388408981,0.71011392,41596.0,41584.0,0.7321]
[1646388408982,0.5,41596.0,41584.0,0.7321]
[1646388409184,0.5,41596.0,41594.0,0.7321]
[1646388409483,0.5,41596.0,41595.0,0.98874]
[1646388409730,0.5,41596.0,41595.0,1.03874]
[1646388409932,0.5,41596.0,41595.0,0.30664]
[1646388410132,0.5,41596.0,41595.0,0.66006083]
[1646388410331,0.5,41596.0,41595.0,1.39216083]
[1646388410536,0.6193,41604.0,41595.0,1.56812735]
[1646388410732,0.6193,41604.0,41595.0,1.46235812]
[1646388411034,0.6193,41604.0,41595.0,0.5542916]
[1646388411035,0.20409396,41602.0,41595.0,0.5542916]
[1646388411434,0.20409396,41602.0,41595.0,0.73024554]
[1646388411833,0.20409396,41602.0,41595.0,0.5542916]
[1646388412032,0.20409396,41602.0,41595.0,0.30664]
[1646388413135,0.5,41603.0,41602.0,0.21264633]
[1646388413391,0.5,41603.0,41597.0,0.840629]
[1646388413392,0.19874612,41600.0,41599.0,0.19648284]
[1646388413593,0.19874612,41600.0,41599.0,0.24648284]
[1646388414691,0.19874612,41600.0,41599.0,0.34648284]
[1646388415091,0.19874612,41600.0,41599.0,0.15]
[1646388415792,0.19874612,41600.0,41599.0,0.05]
[1646388416092,0.19874612,41600.0,41596.0,0.34803852]
[1646388416294,0.19374612,41600.0,41597.0,0.1]
[1646388416491,0.3,41599.0,41596.0,0.19803852]
[1646388416693,0.31024487,41599.0,41594.0,0.2499]
[1646388416893,0.01024487,41595.0,41594.0,0.2499]
[1646388418728,0.01024487,41595.0,41591.0,0.20303852]
[1646388418931,0.01024487,41595.0,41591.0,0.38345764]
[1646388419130,0.01024487,41595.0,41591.0,0.43345764]
[1646388419331,0.01024487,41595.0,41591.0,0.24803852]
[1646388419730,0.01024487,41595.0,41592.0,0.19803852]
[1646388420432,0.01024487,41595.0,41591.0,0.2600953]
[1646388420634,0.01024487,41595.0,41589.0,0.19803852]
[1646388420895,0.01024487,41590.0,41589.0,0.24803852]
[1646388421697,0.01024487,41590.0,41589.0,0.46031359]
[1646388421894,0.01024487,41590.0,41589.0,0.47444231]
[1646388422294,0.0051109,41590.0,41589.0,0.27640379]
[1646388422697,0.0051109,41592.0,41589.0,0.27640379]
[1646388422999,0.0051109,41592.0,41591.0,0.19820062]
[1646388423397,0.0051109,41592.0,41591.0,0.24820062]
[1646388423596,0.19374612,41600.0,41591.0,0.26097181]
[1646388423797,0.0051109,41596.0,41592.0,0.19820062]
[1646388424001,0.0051109,41596.0,41593.0,0.01492482]
[1646388424197,0.0051109,41596.0,41592.0,0.19820062]
[1646388424628,0.0051109,41597.0,41592.0,0.19820062]
[1646388425230,0.0051109,41597.0,41592.0,0.21295471]
[1646388425630,0.19374612,41600.0,41592.0,0.21295471]
[1646388426230,0.0051109,41593.0,41592.0,0.19820062]
[1646388426432,0.0051109,41597.0,41592.0,0.19820062]
[1646388426636,0.21614019,41598.0,41593.0,0.19820062]
[1646388427033,0.0051109,41594.0,41593.0,0.19820062]
[1646388428481,0.0051109,41594.0,41592.0,0.01156339]
[1646388428682,0.0051109,41594.0,41592.0,0.19698251]
[1646388428883,0.19374612,41600.0,41593.0,0.01387122]
[1646388429083,0.0051109,41597.0,41594.0,0.19825948]
[1646388429286,0.0051109,41597.0,41596.0,0.32685084]
[1646388429885,0.0051109,41597.0,41596.0,0.19685084]
[1646388430285,0.0051109,41597.0,41594.0,0.19825948]
[1646388431084,0.0051109,41597.0,41594.0,0.24825948]
[1646388431287,0.0051109,41597.0,41595.0,0.21103036]
[1646388431583,0.0051109,41597.0,41596.0,0.13]
[1646388431985,0.0051109,41597.0,41595.0,0.40928984]
[1646388432235,0.0051109,41597.0,41596.0,0.13]
[1646388433136,0.0051109,41597.0,41596.0,0.01048273]
[1646388433337,0.0051109,41597.0,41595.0,0.60816884]
[1646388433538,0.0051109,41597.0,41596.0,0.13]
[1646388434641,0.0051109,41597.0,41595.0,0.46940784]
[1646388434938,0.0051109,41597.0,41596.0,0.19535196]
[1646388435139,0.0051109,41597.0,41596.0,0.44300356]
[1646388435339,0.19374612,41600.0,41596.0,0.44300356]
[1646388435340,0.19374612,41600.0,41596.0,0.06535196]
[1646388435540,0.19374612,41600.0,41598.0,0.24768885]
[1646388435739,0.19374612,41600.0,41599.0,0.24768885]
[1646388435983,0.19374612,41600.0,41599.0,0.29768885]
[1646388436182,0.19374612,41600.0,41599.0,0.05]
[1646388436383,0.19374612,41600.0,41599.0,0.06010936]
[1646388438887,0.19374612,41600.0,41598.0,0.30168885]
[1646388439085,0.19885702,41600.0,41598.0,0.30168885]
[1646388439642,0.19885702,41600.0,41598.0,0.004]
[1646388439840,0.19885702,41600.0,41597.0,0.29768885]
[1646388440138,0.19885702,41600.0,41597.0,0.39768885]
[1646388441539,0.19885702,41600.0,41597.0,0.58310797]
[1646388442141,0.19885702,41600.0,41597.0,1.12978885]
[1646388442541,0.19885702,41600.0,41598.0,0.18541912]
[1646388443141,0.19877729,41600.0,41598.0,0.18541912]
[1646388443395,0.19877729,41600.0,41598.0,0.42541912]
[1646388443594,0.19877729,41600.0,41599.0,0.19813028]
[1646388443795,0.19877729,41600.0,41599.0,0.24813028]
[1646388446598,0.19877729,41600.0,41599.0,0.98023028]
[1646388446798,0.19366639,41600.0,41599.0,0.05]
[1646388447239,0.19366639,41600.0,41598.0,0.39]
[1646388447643,0.19366639,41600.0,41599.0,0.19824728]
[1646388448043,0.19366639,41600.0,41598.0,0.82310797]
[1646388448542,0.19366639,41600.0,41598.0,1.55520797]
[1646388448942,0.19366639,41600.0,41599.0,0.18541912]
[1646388449144,0.19366639,41600.0,41599.0,1.07762625]
[1646388449344,0.19366639,41600.0,41599.0,1.37762625]
[1646388449545,0.19366639,41600.0,41599.0,1.37489695]
[1646388449742,0.19366639,41600.0,41599.0,1.66251423]
[1646388449945,0.19366639,41600.0,41599.0,1.37489695]
[1646388450143,0.19366639,41600.0,41599.0,1.53065347]
[1646388450989,0.19366639,41600.0,41599.0,1.28148277]
[1646388451993,0.19366639,41600.0,41599.0,1.55102949]
[1646388452890,0.19366639,41600.0,41599.0,1.78325679]
[1646388453891,0.19366639,41600.0,41599.0,2.084791]
[1646388455242,0.19366639,41600.0,41599.0,1.83325679]
[1646388456036,0.19366639,41600.0,41599.0,1.78325679]
[1646388457038,0.19366639,41600.0,41599.0,1.83325679]
[1646388457238,0.19366639,41600.0,41599.0,1.33148277]
[1646388458517,0.19366639,41600.0,41599.0,1.83067204]
[1646388459117,0.19366639,41600.0,41599.0,1.28148277]
[1646388460119,0.19366639,41600.0,41599.0,1.62829859]
[1646388460318,0.19366639,41600.0,41599.0,1.84710997]
[1646388462139,0.19366639,41600.0,41599.0,1.79710997]
[1646388462643,0.19366639,41600.0,41599.0,1.22137564]
[1646388463240,0.19360283,41600.0,41599.0,1.22137564]
[1646388464042,0.19360283,41600.0,41599.0,1.51861515]
[1646388464242,0.19360283,41600.0,41599.0,1.47050919]
[1646388464444,0.19360283,41600.0,41599.0,0.44117564]
[1646388464642,0.19360283,41600.0,41599.0,0.73840485]
[1646388464847,0.19360283,41600.0,41599.0,0.55298573]
[1646388465043,0.19360283,41600.0,41599.0,0.73840485]
[1646388465243,0.19360283,41600.0,41599.0,0.44117564]
[1646388465886,0.19360283,41600.0,41599.0,1.17327564]
[1646388466287,0.19360283,41600.0,41599.0,1.06751912]
[1646388466485,0.19360283,41600.0,41599.0,1.17327564]
[1646388466686,0.19360283,41600.0,41599.0,0.44117564]
[1646388467889,0.19360283,41600.0,41599.0,1.17327564]
[1646388468589,0.19360283,41600.0,41599.0,1.23338217]
[1646388469390,0.19360283,41600.0,41599.0,1.17327564]
[1646388469842,0.19360283,41600.0,41599.0,0.44117564]
[1646388471042,0.19360283,41600.0,41599.0,0.49117564]
[1646388471246,0.19360283,41600.0,41599.0,0.23541912]
[1646388471247,0.49360283,41600.0,41599.0,0.23541912]
[1646388471448,0.19360283,41600.0,41599.0,0.23541912]
[1646388471645,0.19360283,41600.0,41599.0,0.05]
[1646388471845,0.19360283,41600.0,41598.0,0.48813796]
[1646388472348,0.17884862,41599.0,41598.0,0.48813796]
[1646388472545,0.17884862,41599.0,41598.0,0.29]
[1646388473791,0.17884862,41599.0,41598.0,0.24]
[1646388473991,0.17884862,41599.0,41598.0,0.43813796]
[1646388475194,0.17884862,41599.0,41598.0,0.24]
[1646388476793,0.17884862,41599.0,41598.0,0.43811557]
[1646388476994,0.17884862,41599.0,41598.0,0.24]
[1646388477443,0.47884862,41599.0,41598.0,0.24]
[1646388477647,0.62884862,41599.0,41598.0,0.24]
[1646388479847,0.32884862,41599.0,41598.0,0.24]
[1646388480893,0.17884862,41599.0,41598.0,0.24]
[1646388482893,0.84446862,41599.0,41598.0,0.24]
[1646388483094,0.47884862,41599.0,41598.0,0.24]
[1646388483697,0.99446862,41599.0,41598.0,0.24]
[1646388484298,1.04256862,41599.0,41598.0,0.24]
[1646388485142,0.67694862,41599.0,41598.0,0.24]
[1646388488595,0.27755869,41591.0,41586.0,0.26455059]
[1646388488795,0.28973274,41592.0,41590.0,0.02404164]
[1646388488997,0.0051109,41591.0,41588.0,0.24764619]
[1646388489196,0.0051109,41591.0,41590.0,0.02404164]
[1646388489395,0.0051109,41591.0,41590.0,0.19279193]
[1646388490598,0.0051109,41591.0,41590.0,0.44043754]
[1646388490797,0.0051109,41591.0,41590.0,0.62585666]
[1646388491998,0.0051109,41591.0,41590.0,0.19279135]
[1646388492240,0.0051109,41591.0,41590.0,0.92489135]
[1646388492443,0.0051109,41591.0,41590.0,0.44043754]
[1646388492639,0.0051109,41591.0,41590.0,0.62585666]
[1646388492840,0.0051109,41591.0,41590.0,0.44043754]
[1646388493240,0.0051109,41591.0,41590.0,0.19279135]
[1646388493841,0.0051109,41591.0,41590.0,0.43279135]
[1646388494043,0.0051109,41591.0,41590.0,0.61821047]
[1646388495443,0.0051109,41591.0,41590.0,0.43279135]
[1646388496395,0.0051109,41591.0,41590.0,0.26404106]
[1646388497296,0.0051109,41591.0,41590.0,0.31404106]
[1646388498097,0.0051109,41591.0,41590.0,1.04614106]
[1646388498298,0.28973274,41592.0,41590.0,1.23156018]
[1646388498500,0.28973274,41592.0,41591.0,0.84829507]
[1646388498698,0.28973274,41592.0,41591.0,1.12329979]
[1646388498899,0.28973274,41592.0,41591.0,1.17329979]
[1646388499102,0.28973274,41592.0,41591.0,1.49458544]
[1646388499398,0.28973274,41592.0,41591.0,1.22139979]
[1646388500251,0.28973274,41592.0,41591.0,1.518629]
[1646388501648,0.28973274,41592.0,41591.0,1.22139979]
[1646388503500,0.28973274,41592.0,41591.0,1.67347577]
[1646388503904,0.0011,41604.0,41593.0,0.7321]
[1646388504201,0.0011,41604.0,41599.0,0.9795607]
[1646388504399,0.0011,41604.0,41599.0,1.06478668]
[1646388504601,0.0011,41604.0,41599.0,1.3502058]
[1646388504999,0.0011,41604.0,41599.0,1.55403685]
[1646388505400,0.0011,41604.0,41599.0,1.68403685]
[1646388505601,0.0011,41604.0,41599.0,1.37520669]
[1646388506001,0.0011,41604.0,41599.0,1.67215953]
[1646388506501,0.0011,41604.0,41599.0,1.37520669]
[1646388506999,0.0011,41604.0,41599.0,1.67215953]
[1646388507246,0.0011,41604.0,41599.0,1.73226379]
[1646388507846,0.0011,41604.0,41599.0,1.63531095]
[1646388508046,0.0011,41604.0,41599.0,1.62520669]
[1646388508946,0.0011,41604.0,41599.0,1.42520669]
[1646388509145,0.0011,41604.0,41599.0,1.43977038]
[1646388509347,0.0011,41604.0,41599.0,1.4265375]
[1646388510248,0.0011,41604.0,41599.0,1.5430029]
[1646388510467,0.0011,41604.0,41599.0,1.88934507]
[1646388511102,0.0011,41604.0,41599.0,1.88933236]
[1646388511697,0.0011,41604.0,41599.0,2.08933236]
[1646388512097,0.0162109,41609.0,41601.0,0.7321]
[1646388512098,0.0111,41609.0,41601.0,0.7321]
[1646388512300,0.01,41613.0,41608.0,1.4]
[1646388512499,0.01,41613.0,41610.0,0.7321]
[1646388512703,0.01,41613.0,41612.0,0.8621]
[1646388512898,0.01,41613.0,41612.0,0.88593111]
[1646388513199,0.01,41613.0,41612.0,1.30435287]
[1646388513597,0.01,41613.0,41612.0,1.54435287]
[1646388513998,0.01,41613.0,41612.0,0.81225287]
[1646388514200,0.01,41613.0,41612.0,1.54435287]
[1646388514646,0.01,41613.0,41612.0,0.81225287]
[1646388515143,0.01,41613.0,41612.0,1.54435287]
[1646388515544,0.01,41613.0,41612.0,0.81225287]
[1646388516844,0.01,41613.0,41612.0,0.59383111]
[1646388517647,0.0151109,41613.0,41612.0,0.39383111]
[1646388517851,0.0151109,41613.0,41612.0,0.34573111]
[1646388518046,0.0151109,41613.0,41612.0,0.24]
[1646388518047,0.3151109,41613.0,41612.0,0.24]
[1646388518695,0.28813987,41610.0,41603.0,0.31799433]
[1646388518896,0.28813987,41610.0,41601.0,0.30812812]
[1646388518897,0.0051109,41604.0,41602.0,0.19778633]
[1646388519096,0.0051109,41604.0,41601.0,0.07186001]
[1646388519298,0.3,41606.0,41601.0,0.07186001]
[1646388519497,0.0051109,41604.0,41601.0,0.0608]
[1646388519696,0.27229348,41603.0,41601.0,0.0608]
[1646388519897,0.0051109,41604.0,41601.0,0.0608]
[1646388521100,0.26814871,41603.0,41601.0,0.0608]
[1646388521300,0.3,41602.0,41601.0,0.0608]
[1646388523756,1.4,41601.0,41590.0,0.24732812]
[1646388524058,0.0051109,41591.0,41590.0,0.05]
[1646388524255,0.0051109,41591.0,41590.0,0.02403962]
[1646388524455,0.0051109,41591.0,41590.0,0.07403962]
[1646388524657,0.0051109,41591.0,41590.0,0.31403962]
[1646388524857,0.0051109,41591.0,41590.0,0.26403962]
[1646388525893,0.3051109,41591.0,41590.0,0.26403962]
[1646388526994,0.0051109,41591.0,41590.0,0.26403962]
[1646388527194,0.3051109,41591.0,41590.0,0.26403962]
[1646388527995,0.3051109,41591.0,41585.0,0.29732812]
[1646388527996,1.25,41590.0,41585.0,0.29732812]
[1646388528200,1.25,41590.0,41585.0,0.05]
[1646388528201,0.0051109,41586.0,41585.0,0.05]
[1646388528395,0.0051109,41586.0,41585.0,0.00134653]
[1646388528896,0.0027109,41586.0,41585.0,0.00134653]
[1646388529094,0.0027109,41586.0,41585.0,0.0013225]
[1646388533898,0.0027109,41586.0,41585.0,0.00250925]
[1646388534797,0.0027109,41586.0,41585.0,0.24250925]
[1646388537145,0.0027109,41586.0,41585.0,0.29250925]
[1646388538751,0.0027109,41586.0,41585.0,0.30527851]
[1646388539149,0.0027109,41586.0,41585.0,0.29250925]
[1646388539349,0.0027109,41586.0,41585.0,0.30342479]
[1646388539649,0.0027109,41586.0,41585.0,0.29250925]
[1646388544016,0.09141215,41601.0,41585.0,0.29250925]
[1646388544017,0.0027109,41592.0,41585.0,0.34250925]
[1646388544215,1.1957,41612.0,41587.0,0.01253739]
[1646388544216,0.1244,41600.0,41587.0,0.01253739]
[1646388544416,0.1244,41600.0,41588.0,0.01443373]
[1646388544653,0.1244,41600.0,41589.0,0.01381931]
[1646388544853,0.27962229,41598.0,41591.0,0.2058539]
[1646388545054,0.0027109,41594.0,41592.0,0.01344307]
[1646388545453,0.0027109,41594.0,41589.0,0.60829479]
[1646388545653,0.0027109,41594.0,41591.0,0.01153225]
[1646388546455,0.19234168,41602.0,41593.0,0.13]
[1646388546655,0.0027109,41598.0,41591.0,0.53177625]
[1646388546856,0.0027109,41598.0,41593.0,0.05]
[1646388547055,0.0027109,41598.0,41593.0,0.01389424]
[1646388547255,0.0027109,41598.0,41595.0,0.01578601]
[1646388547655,0.07130631,41594.0,41592.0,0.05]
[1646388547858,0.15,41599.0,41585.0,0.01294606]
[1646388547859,0.2918584,41593.0,41585.0,0.01294606]
[1646388548056,0.7807784,41598.0,41585.0,0.00118675]
[1646388548256,0.0027109,41586.0,41585.0,0.00118675]
[1646388548499,0.0027109,41586.0,41585.0,0.11514686]
[1646388549002,0.0027109,41586.0,41585.0,0.12680371]
[1646388549003,0.00195338,41586.0,41585.0,0.12680371]
[1646388549402,0.00195338,41586.0,41585.0,0.22680371]
[1646388549800,0.21363579,41587.0,41585.0,0.22680371]
[1646388550001,0.21363579,41587.0,41586.0,0.11396011]
[1646388550200,0.21579124,41590.0,41586.0,0.11396011]
[1646388550400,0.00195338,41587.0,41585.0,0.0628436]
[1646388550601,0.00195338,41587.0,41586.0,0.11396011]
[1646388550799,0.00195338,41587.0,41586.0,0.16396011]
[1646388551401,0.00195338,41587.0,41586.0,0.11396011]
[1646388555453,0.00195338,41587.0,41586.0,0.35396011]
[1646388555914,0.35589582,41592.0,41587.0,0.01031425]
[1646388556313,0.35589582,41592.0,41587.0,0.06031425]
[1646388556514,0.35589582,41592.0,41588.0,0.0128786]
[1646388556714,0.35589582,41592.0,41587.0,0.03251368]
[1646388556716,0.28948965,41591.0,41587.0,0.03251368]
[1646388556918,0.28948965,41591.0,41588.0,0.01310778]
[1646388557516,0.28948965,41591.0,41588.0,0.01061953]
[1646388557916,0.28948965,41591.0,41587.0,0.04432333]
[1646388558116,0.28948965,41591.0,41588.0,0.01184388]
[1646388559315,0.28948965,41591.0,41589.0,0.01025444]
[1646388559520,0.2932163,41590.0,41589.0,0.01025444]
[1646388559766,0.2932163,41590.0,41587.0,0.03251368]
[1646388559767,0.7069363,41590.0,41587.0,0.03251368]
[1646388559963,0.36562,41588.0,41587.0,0.03251368]
[1646388560163,0.41372,41588.0,41587.0,0.03251368]
[1646388561064,0.71372,41588.0,41587.0,0.03251368]
[1646388564103,0.71372,41588.0,41587.0,0.05]
[1646388564300,0.9120527,41588.0,41587.0,0.05]
[1646388565302,0.71372,41588.0,41587.0,0.05]
[1646388566105,0.74995444,41588.0,41587.0,0.05]
[1646388566705,0.94828714,41588.0,41587.0,0.05]
[1646388567351,0.74995444,41588.0,41587.0,0.05]
[1646388568549,0.71372,41588.0,41587.0,0.05]
[1646388569653,0.0481,41588.0,41587.0,0.05]
[1646388569855,0.41372,41588.0,41587.0,0.05]
[1646388570553,0.36562,41590.0,41587.0,0.05]
[1646388571009,0.36562,41590.0,41587.0,0.04]
[1646388571604,0.28948965,41591.0,41587.0,0.04]
[1646388571903,0.36562,41590.0,41587.0,0.04]
[1646388572903,0.36555281,41590.0,41587.0,0.04]
[1646388573703,0.36555281,41590.0,41588.0,0.00119161]
[1646388576354,0.83192175,41589.0,41588.0,0.00119161]
[1646388576953,0.66562,41589.0,41588.0,0.00119161]
[1646388579619,0.7024595,41589.0,41588.0,0.00119161]
[1646388579820,0.66562,41589.0,41588.0,0.00119161]
[1646388580923,0.88321597,41589.0,41588.0,0.00119161]
[1646388581324,0.66562,41589.0,41588.0,0.00119161]
[1646388582247,0.70191127,41589.0,41588.0,0.00119161]
[1646388582550,0.85829352,41589.0,41588.0,0.00119161]
[1646388585349,0.70191127,41589.0,41588.0,0.00119161]
[1646388586699,0.11440364,41578.0,41572.0,0.320123]
[1646388586899,0.11440364,41578.0,41576.0,0.120323]
[1646388587100,0.11440364,41578.0,41577.0,0.01138738]
[1646388587298,0.11440364,41578.0,41576.0,0.170323]
[1646388588298,0.11440364,41578.0,41577.0,0.05]
[1646388589500,0.78002864,41578.0,41577.0,0.05]
[1646388589952,0.78002864,41578.0,41575.0,0.05]
[1646388590151,0.62012525,41577.0,41575.0,0.05]
[1646388590350,0.3,41576.0,41574.0,0.130161]
[1646388590550,0.365625,41575.0,41574.0,0.130161]
[1646388590751,0.365625,41575.0,41574.0,0.180161]
[1646388591350,0.665625,41575.0,41574.0,0.180161]
[1646388591751,0.665625,41575.0,41574.0,0.130161]
[1646388591950,0.665625,41575.0,41574.0,0.02]
[1646388592152,0.713725,41575.0,41574.0,0.02]
[1646388593255,0.7321,41573.0,41565.0,0.060187]
[1646388593511,1.4,41574.0,41561.0,0.01]
[1646388593512,0.15,41566.0,41561.0,0.01]
[1646388593713,0.563725,41565.0,41561.0,0.01]
[1646388593911,0.0481,41564.0,41561.0,0.01]
[1646388594109,0.365625,41563.0,41561.0,0.01]
[1646388594310,0.25152533,41562.0,41561.0,0.01]
[1646388594514,0.61715033,41562.0,41561.0,0.01]
[1646388594710,0.88146223,41562.0,41561.0,0.01]
[1646388595711,0.88146223,41562.0,41561.0,0.25]
[1646388596314,0.88146223,41562.0,41561.0,0.3]
[1646388597149,0.88146223,41562.0,41561.0,0.06]
[1646388598850,0.88146223,41562.0,41561.0,0.07197151]
[1646388599349,0.413725,41562.0,41561.0,0.06]
[1646388601430,0.0481,41562.0,41561.0,0.06]
[1646388602228,0.03559664,41566.0,41561.0,0.06]
[1646388602426,0.365625,41565.0,41561.0,0.120184]
[1646388602626,0.365625,41564.0,41561.0,0.120184]
[1646388602826,0.03559664,41566.0,41561.0,0.120184]
[1646388603427,0.03559664,41566.0,41561.0,0.170184]
[1646388603628,0.0301088,41571.0,41562.0,0.9]
[1646388604030,0.1197,41573.0,41568.0,0.060168]
[1646388604428,0.17914552,41576.0,41568.0,0.060168]
[1646388604850,0.17914552,41576.0,41569.0,0.05]
[1646388605050,0.365625,41575.0,41569.0,0.05]
[1646388605252,0.26397361,41574.0,41569.0,0.05]
[1646388605651,0.365625,41573.0,41569.0,0.05]
[1646388605950,0.26397361,41574.0,41569.0,0.05]
[1646388606750,0.365625,41573.0,41569.0,0.05]
[1646388607352,0.665625,41573.0,41568.0,0.01]
[1646388607552,0.66218077,41573.0,41568.0,0.01]
[1646388607752,0.365625,41570.0,41568.0,0.01]
[1646388607954,0.665631,41569.0,41568.0,0.01]
[1646388608153,0.8662492,41569.0,41568.0,0.01]
[1646388610002,0.86585309,41569.0,41568.0,0.01]
[1646388610700,0.5662492,41569.0,41568.0,0.01]
[1646388612956,0.365631,41569.0,41568.0,0.01]
[1646388616103,0.004556,41569.0,41568.0,0.01]
[1646388616908,0.365631,41568.0,41561.0,0.5]
[1646388617106,0.17103592,41572.0,41562.0,0.18071899]
[1646388617308,0.365632,41571.0,41562.0,0.05]
[1646388617508,0.3,41570.0,41561.0,0.1998]
[1646388617709,0.365632,41569.0,41562.0,0.060183]
[1646388618105,0.44263925,41566.0,41562.0,0.060183]
[1646388618306,0.3,41570.0,41563.0,0.1998]
[1646388618506,0.20591062,41567.0,41563.0,0.1998]
[1646388619305,0.49039907,41567.0,41563.0,0.1998]
[1646388619771,0.20591062,41567.0,41563.0,0.1998]
[1646388619970,0.20591062,41567.0,41565.0,0.01028029]
[1646388620171,0.20591062,41567.0,41566.0,0.01393257]
[1646388620371,0.20591062,41567.0,41563.0,0.1998]
[1646388620372,0.365632,41566.0,41563.0,0.1998]
[1646388620571,0.20591062,41567.0,41563.0,0.1998]
[1646388621373,0.365632,41566.0,41563.0,0.1998]
[1646388621669,0.26529814,41566.0,41563.0,0.1998]
[1646388622071,0.20591062,41567.0,41563.0,0.1998]
[1646388622470,0.365632,41566.0,41563.0,0.1998]
[1646388623402,0.62731875,41566.0,41563.0,0.1998]
[1646388623602,0.365632,41566.0,41562.0,0.060183]
[1646388624201,0.365632,41566.0,41562.0,0.113183]
[1646388624401,0.365632,41565.0,41562.0,0.113183]
[1646388624705,0.63425447,41566.0,41562.0,0.113183]
[1646388624903,0.365632,41565.0,41562.0,0.113183]
[1646388625102,0.26862247,41566.0,41562.0,0.113183]
[1646388625302,0.365632,41565.0,41562.0,0.113183]
[1646388625502,0.365632,41565.0,41562.0,0.060183]
[1646388625702,0.365632,41564.0,41562.0,0.060183]
[1646388626305,0.365632,41564.0,41561.0,0.05]
[1646388626306,0.3,41563.0,41561.0,0.05]
[1646388626504,0.3,41563.0,41560.0,0.0011]
[1646388626505,0.365632,41562.0,41560.0,0.0511]
[1646388626704,0.365632,41562.0,41560.0,0.0011]
[1646388629553,0.3,41561.0,41560.0,0.0011]
[1646388629752,0.365632,41561.0,41560.0,0.0011]
[1646388630354,0.8255049,41561.0,41560.0,0.0011]
[1646388630755,0.665632,41561.0,41560.0,0.0011]
[1646388631005,0.713732,41561.0,41560.0,0.0011]
[1646388631207,0.713732,41561.0,41560.0,0.01489934]
[1646388631404,0.713732,41561.0,41560.0,0.0011]
[1646388631803,0.88360477,41561.0,41560.0,0.0011]
[1646388632405,0.88360477,41561.0,41557.0,0.0011]
[1646388632406,0.00125399,41559.0,41557.0,0.0011]
[1646388632606,0.413732,41558.0,41557.0,0.0011]
[1646388632803,0.76791039,41558.0,41557.0,0.0011]
[1646388633007,0.76791039,41558.0,41550.0,0.23581531]
[1646388633008,0.425849,41554.0,41550.0,0.23581531]
[1646388633208,0.365632,41552.0,41550.0,0.23581531]
[1646388633404,0.713732,41551.0,41550.0,0.23581531]
[1646388634503,1.765632,41550.0,41549.0,0.0011]
[1646388634776,1.813732,41550.0,41549.0,0.0011]
[1646388634976,1.813732,41550.0,41546.0,0.0021]
[1646388634977,1.4,41549.0,41546.0,0.0021]
[1646388635180,0.773955,41548.0,41546.0,0.0021]
[1646388635376,0.3,41547.0,41546.0,0.0021]
[1646388635676,0.713732,41547.0,41546.0,0.0021]
[1646388639404,0.413732,41547.0,41546.0,0.0021]
[1646388639902,0.713732,41547.0,41546.0,0.0021]
[1646388641308,0.413732,41547.0,41546.0,0.0021]
[1646388641708,0.17806679,41552.0,41547.0,0.01289658]
[1646388641911,0.365632,41551.0,41548.0,0.0137943]
[1646388642154,0.365632,41551.0,41547.0,0.120406]
[1646388642355,0.002,41551.0,41547.0,0.120406]
[1646388642860,0.365632,41550.0,41547.0,0.120406]
[1646388644055,0.365632,41548.0,41547.0,0.120406]
[1646388644254,0.21363124,41552.0,41547.0,0.180612]
[1646388644255,0.365632,41550.0,41547.0,0.180612]
[1646388644459,0.002,41551.0,41548.0,0.120396]
[1646388645458,0.1960366,41555.0,41548.0,0.120396]
[1646388645655,0.1960366,41555.0,41550.0,0.19807197]
[1646388645901,0.1960366,41555.0,41548.0,0.240801]
[1646388646900,0.11515279,41555.0,41548.0,0.240801]
[1646388647300,0.002,41556.0,41548.0,0.240801]
[1646388647702,0.002,41556.0,41552.0,0.24097125]
[1646388647903,0.00125399,41559.0,41555.0,0.00264693]
[1646388648105,0.00125399,41559.0,41556.0,0.364773]
[1646388648303,0.00125399,41559.0,41557.0,0.1973349]
[1646388648902,0.00125399,41559.0,41556.0,0.170375]
[1646388649104,0.365632,41558.0,41556.0,0.170375]
[1646388649303,0.365632,41557.0,41556.0,0.170375]
[1646388649504,0.365632,41557.0,41556.0,0.05]
[1646388649770,0.00125399,41559.0,41555.0,0.170376]
[1646388649771,0.28894121,41558.0,41555.0,0.170376]
[1646388649974,0.16628949,41557.0,41555.0,0.170376]
[1646388651574,0.00125399,41559.0,41555.0,0.170376]
[1646388651772,0.00125399,41559.0,41555.0,0.170375]
[1646388652170,0.00125399,41559.0,41556.0,0.120378]
[1646388652370,0.00125399,41559.0,41557.0,0.02417395]
[1646388652570,0.00125399,41559.0,41558.0,0.01338666]
[1646388652771,0.00125399,41559.0,41558.0,0.20964791]
[1646388652971,0.00125399,41559.0,41557.0,0.15864926]
[1646388654004,0.00125399,41559.0,41557.0,0.21883726]
[1646388654206,0.00125399,41559.0,41558.0,0.05]
[1646388654413,0.00125399,41559.0,41558.0,0.614755]
[1646388654605,0.00125399,41559.0,41558.0,0.638785]
[1646388655006,0.00125399,41559.0,41558.0,1.08712055]
[1646388655208,0.00125399,41559.0,41558.0,1.53425065]
[1646388655405,0.1206,41575.0,41570.0,0.16818347]
[1646388655606,0.19202801,41577.0,41570.0,0.83281247]
[1646388655806,0.11440364,41578.0,41570.0,0.83281247]
[1646388656212,0.11440364,41578.0,41571.0,0.564615]
[1646388656606,0.11440364,41578.0,41572.0,0.05]
[1646388656810,0.11440364,41578.0,41573.0,0.664595]
[1646388657006,0.11440364,41578.0,41577.0,0.211332]
[1646388657458,0.11440364,41578.0,41577.0,1.30992396]
[1646388657855,0.11440364,41578.0,41577.0,1.33395396]
[1646388658053,0.11440364,41578.0,41577.0,1.30992396]
[1646388658662,0.11440364,41578.0,41577.0,1.00992396]
[1646388658853,0.01,41583.0,41578.0,1.15]
[1646388659056,0.01,41583.0,41579.0,0.624684]
[1646388659254,0.01,41583.0,41579.0,0.674684]
[1646388659456,0.01,41583.0,41581.0,0.2]